{"text_format":"1","workbook":"xlsx","n_sheets":3,"sheets":["Акт отбора пробы","Ground","Directory"],"not_rendered":{"charts":0,"images":0,"macros":0,"external_links":0,"defined_names":13,"comments":0,"pivot_tables":0},"unopened":[],"bounds":{"document_bytes":16777216,"sheet_cells":100000,"rows_first":2000,"rows_last":500,"rows_between":2000,"halvings":0,"cell_chars":16384,"cell_head_chars":4096},"cells_cut":0,"cells_raw":0,"read":"whole","date_system":"1900"}

{"sheet":"Акт отбора пробы","index":0,"n_rows":66,"n_cols":15,"rows_kept":66,"cut":false,"hidden":false,"merged":[[20,8,20,17],[22,8,22,17],[65,11,65,13],[56,0,56,17],[59,11,59,13],[62,11,62,13],[26,8,26,17],[5,0,5,17],[12,0,12,17],[6,0,6,17],[8,0,8,17],[10,0,10,17],[9,0,9,17],[18,8,18,17],[16,8,16,17],[14,8,14,17],[24,8,24,17],[54,8,54,17],[52,8,52,17],[46,8,46,17],[44,8,44,17],[42,8,42,17],[40,8,40,17],[38,8,38,17],[36,8,36,17],[34,8,34,17],[32,8,32,17],[30,8,30,17],[28,8,28,17]]}
[]
[]
[]
[]
[]
[]
[]
[]
["Акт отбора образцов (проб) №1"]
["в соответствии с ГОСТ Р 58325-2018; ГОСТ 30416-2020; ГОСТ 120701-2014"]
["для лабораторного определения физических характеристик ГОСТ 5180-2015;\nлабораторного определения гранулометрического (зернового) состава ГОСТ 12536-2014;\nлабораторного определения максимальной плотности ГОСТ 22733-2016"]
["Объект строительства:"]
[]
[]
["Наименование организации Заказчика:"]
[]
["Организация – производитель работ:"]
[]
["Класс грунта:",null,null,null,null,null,null,null,"Скальный грунт"]
[]
["Подкласс грунта:",null,null,null,null,null,null,null,"Цементационные"]
[]
["Подвид грунта:"]
[]
["Поставщик материала:",null,null,null,null,null,null,null,"ООО \"ПромИнвест\" Московская обл., Щелковский р-н, д. Аксиньино"]
[]
["Назначение грунта:",null,null,null,null,null,null,null,"Подушка под \"Основание плит для СВСиУ\""]
[]
["Дата отбора пробы:",null,null,null,null,null,null,null,"2024-12-14"]
[]
["Номер паспорта:",null,null,null,null,null,null,null,"не известен"]
[]
["Номер партии:",null,null,null,null,null,null,null,"не известен"]
[]
["Место отбора пробы: ",null,null,null,null,null,null,null,"Склад инертного материала"]
[]
["Глубина от основания:"]
[]
["Схема отбора проб:",null,null,null,null,null,null,null,"Отсутствует"]
[]
["Размер, объем выборки:  ",null,null,null,null,null,null,null,18]
[]
["Число отобранных образцов:",null,null,null,null,null,null,null,"1 объединенная проба."]
[]
["Образцы отобраны: ",null,null,null,null,null,null,null,"Лопата, мешок, целлофановый пакет."]
[]
["Другие данные:",null,null,null,null,null,null,null,"Снабжены двумя этикетками внутри и снаружи мешка "]
[]
[]
[]
[]
[]
["Условия отбора образцов:",null,null,null,null,null,null,null,"t =  -7 ⁰С без осадков"]
[]
["Условия хранения образцов:",null,null,null,null,null,null,null,"t =  +20 ⁰С"]
[]
["Настоящий акт составлен комиссией в составе:"]
[]
["Инженер-лаборант ООО ",null,null,null,null,null,null,null,null,null,null,null,null,null,"Д.С. Шадрин"]
["(наименование организации, должность представителя, Ф.И.О.)",null,null,null,null,null,null,null,null,null,null,"подпись"]
[]
[{"$f":"\"Представитель Заказчика \"&I15&\"\"","v":"Представитель Заказчика "},null,null,null,null,null,null,null,null,null,null,null,null,null,"В.И Спирин "]
["(наименование организации, должность представителя, Ф.И.О.)",null,null,null,null,null,null,null,null,null,null,"подпись"]
[]
[{"$f":"\"Представитель производителя работ \"&I17&\"\"","v":"Представитель производителя работ "}]
["(наименование организации, должность представителя, Ф.И.О.)",null,null,null,null,null,null,null,null,null,null,"подпись"]

{"sheet":"Ground","index":1,"n_rows":126,"n_cols":7,"rows_kept":126,"cut":false,"hidden":false,"merged":[]}
["ID","Класс","Подкласс","Тип","Подтип","Вид","Подвид"]
[null,"Скальный грунт","Кристализационные","Магматические","Интрузивные","Кислые","Гранит"]
[null,"Скальный грунт","Кристализационные","Магматические","Интрузивные","Ультракислые","Гранит"]
[null,"Скальный грунт","Кристализационные","Магматические","Интрузивные","Средние","Диорит"]
[null,"Скальный грунт","Кристализационные","Магматические","Интрузивные","Средние","Сиениты"]
[null,"Скальный грунт","Кристализационные","Магматические","Интрузивные","Основные","Пироксениты"]
[null,"Скальный грунт","Кристализационные","Магматические","Интрузивные","Основные","Габро"]
[null,"Скальный грунт","Кристализационные","Магматические","Интрузивные","Ультраосновные","Перидотиты"]
[null,"Скальный грунт","Кристализационные","Магматические","Интрузивные","Ультраосновные","Дуниты"]
[null,"Скальный грунт","Кристализационные","Магматические","Эффузивные","Кислые","Риолиты"]
[null,"Скальный грунт","Кристализационные","Магматические","Эффузивные","Кислые","Дациты"]
[null,"Скальный грунт","Кристализационные","Магматические","Эффузивные","Ультракислые","Риолиты"]
[null,"Скальный грунт","Кристализационные","Магматические","Эффузивные","Ультракислые","Дациты"]
[null,"Скальный грунт","Кристализационные","Магматические","Эффузивные","Средние","Андезиты"]
[null,"Скальный грунт","Кристализационные","Магматические","Эффузивные","Средние","Тефриты"]
[null,"Скальный грунт","Кристализационные","Магматические","Эффузивные","Основные","Базальты"]
[null,"Скальный грунт","Кристализационные","Магматические","Эффузивные","Ультраосновные","Пикриты"]
[null,"Скальный грунт","Кристализационные","Метаморфические","Региональные","По химическому составу с учетом фации регионального метаморфизма","Метавулканиты"]
[null,"Скальный грунт","Кристализационные","Метаморфические","Региональные","По химическому составу с учетом фации регионального метаморфизма","Сланцы"]
[null,"Скальный грунт","Кристализационные","Метаморфические","Региональные","По химическому составу с учетом фации регионального метаморфизма","Амфиболиты"]
[null,"Скальный грунт","Кристализационные","Метаморфические","Региональные","По химическому составу с учетом фации регионального метаморфизма","Гранулиты"]
[null,"Скальный грунт","Кристализационные","Метаморфические","Региональные","По химическому составу с учетом фации регионального метаморфизма","Гнейсы"]
[null,"Скальный грунт","Кристализационные","Метаморфические","Метасоматические","По химическому составу с учетом фации регионального метаморфизма","Метавулканиты"]
[null,"Скальный грунт","Кристализационные","Метаморфические","Метасоматические","По химическому составу с учетом фации регионального метаморфизма","Сланцы"]
[null,"Скальный грунт","Кристализационные","Метаморфические","Метасоматические","По химическому составу с учетом фации регионального метаморфизма","Амфиболиты"]
[null,"Скальный грунт","Кристализационные","Метаморфические","Метасоматические","По химическому составу с учетом фации регионального метаморфизма","Гранулиты"]
[null,"Скальный грунт","Кристализационные","Метаморфические","Метасоматические","По химическому составу с учетом фации регионального метаморфизма","Гнейсы"]
[null,"Скальный грунт","Кристализационные","Метаморфические","Дислокационные","По химическому составу с учетом фации эклогиты, тектониты","Эклогиты"]
[null,"Скальный грунт","Кристализационные","Метаморфические","Дислокационные","По химическому составу с учетом фации эклогиты, тектониты","Брекчии"]
[null,"Скальный грунт","Кристализационные","Метаморфические","Дислокационные","По химическому составу с учетом фации эклогиты, тектониты","Минолиты"]
[null,"Скальный грунт","Кристализационные","Метаморфические","Дислокационные","По химическому составу с учетом фации эклогиты, тектониты","Филлиты"]
[null,"Скальный грунт","Кристализационные","Метаморфические","Контактовые","По химическому составу с учетом фации низко, средне, высокотемпературная","Пятнистые сланцы"]
[null,"Скальный грунт","Кристализационные","Метаморфические","Контактовые","По химическому составу с учетом фации низко, средне, высокотемпературная","Раговики"]
[null,"Скальный грунт","Кристализационные","Метаморфические","Контактовые","По химическому составу с учетом фации низко, средне, высокотемпературная","Скарны"]
[null,"Скальный грунт","Кристализационные","Метаморфические","Контактовые","По химическому составу с учетом фации низко, средне, высокотемпературная","Мраморы"]
[null,"Скальный грунт","Цементационные","Вулканогенно-осадочные","Эффузивно-осадочные","Селикатные смешанные","Кластолавы"]
[null,"Скальный грунт","Цементационные","Вулканогенно-осадочные","Эффузивно-осадочные","Селикатные смешанные","Кластиты"]
[null,"Скальный грунт","Цементационные","Вулканогенно-осадочные","Эксплозивно-осадочные","Селикатные смешанные","Тефра"]
[null,"Скальный грунт","Цементационные","Вулканогенно-осадочные","Эксплозивно-осадочные","Селикатные смешанные","Туфы"]
[null,"Скальный грунт","Цементационные","Вулканогенно-осадочные","Эксплозивно-осадочные","Силикатные, карбонатные, смешанные","Туффиты"]
[null,"Скальный грунт","Цементационные","Осадочные","Осадочные сцементированные","Силикатные, карбонатные, смешанные","Конгломераты"]
[null,"Скальный грунт","Цементационные","Осадочные","Осадочные сцементированные","Силикатные, карбонатные, смешанные","Брекчии"]
[null,"Скальный грунт","Цементационные","Осадочные","Осадочные сцементированные","Силикатные, карбонатные, смешанные","Гравелиты"]
[null,"Скальный грунт","Цементационные","Осадочные","Осадочные сцементированные","Силикатные, карбонатные, смешанные","Песчаники"]
[null,"Скальный грунт","Цементационные","Осадочные","Осадочные сцементированные","Силикатные, карбонатные, смешанные","Алевролиты"]
[null,"Скальный грунт","Цементационные","Осадочные","Осадочные сцементированные","Силикатные, карбонатные, смешанные","Аргиллиты"]
[null,"Скальный грунт","Цементационные","Осадочные","Осадочные органогенные","Кремнистые","Опоки"]
[null,"Скальный грунт","Цементационные","Осадочные","Осадочные органогенные","Кремнистые","Трепела"]
[null,"Скальный грунт","Цементационные","Осадочные","Осадочные хемогенные","Карбонатные","Известняк"]
[null,"Скальный грунт","Цементационные","Осадочные","Осадочные хемогенные","Карбонатные","Мергели"]
[null,"Скальный грунт","Цементационные","Осадочные","Осадочные хемогенные","Карбонатные","Доломиты"]
[null,"Скальный грунт","Цементационные","Осадочные","Осадочные хемогенные","Сульфатные","Гипс"]
[null,"Скальный грунт","Цементационные","Осадочные","Осадочные хемогенные","Сульфатные","Ангидрит"]
[null,"Скальный грунт","Цементационные","Осадочные","Осадочные хемогенные","Гапоидные","Галит"]
[null,"Скальный грунт","Цементационные","Осадочные","Осадочные хемогенные","Гапоидные","Сильвинит"]
[null,"Диспресный грунт","Несвязанные","Осадочные","Морские","Минеральные","Крупнообломочные пески"]
[null,"Диспресный грунт","Несвязанные","Осадочные","Аллюквиальные","Минеральные","Крупнообломочные пески"]
[null,"Диспресный грунт","Несвязанные","Осадочные","Флювиальные","Минеральные","Крупнообломочные пески"]
[null,"Диспресный грунт","Несвязанные","Осадочные","Ледниковые","Минеральные","Крупнообломочные пески"]
[null,"Диспресный грунт","Несвязанные","Осадочные","Эоловые","Минеральные","Крупнообломочные пески"]
[null,"Диспресный грунт","Несвязанные","Осадочные","Склоновые","Минеральные","Крупнообломочные пески"]
[null,"Диспресный грунт","Несвязанные","Осадочные","Морские","Минеральные","Пески с примесью органического вещества"]
[null,"Диспресный грунт","Несвязанные","Осадочные","Аллюквиальные","Минеральные","Пески с примесью органического вещества"]
[null,"Диспресный грунт","Несвязанные","Осадочные","Флювиальные","Минеральные","Пески с примесью органического вещества"]
[null,"Диспресный грунт","Несвязанные","Осадочные","Ледниковые","Минеральные","Пески с примесью органического вещества"]
[null,"Диспресный грунт","Несвязанные","Осадочные","Эоловые","Минеральные","Пески с примесью органического вещества"]
[null,"Диспресный грунт","Несвязанные","Осадочные","Склоновые","Минеральные","Пески с примесью органического вещества"]
[null,"Диспресный грунт","Несвязанные","Осадочные","Морские","Органо-миниральные","Пески заторфованные"]
[null,"Диспресный грунт","Несвязанные","Осадочные","Аллюквиальные","Органо-миниральные","Пески заторфованные"]
[null,"Диспресный грунт","Несвязанные","Осадочные","Флювиальные","Органо-миниральные","Пески заторфованные"]
[null,"Диспресный грунт","Несвязанные","Осадочные","Ледниковые","Органо-миниральные","Пески заторфованные"]
[null,"Диспресный грунт","Несвязанные","Осадочные","Эоловые","Органо-миниральные","Пески заторфованные"]
[null,"Диспресный грунт","Несвязанные","Осадочные","Склоновые","Органо-миниральные","Пески заторфованные"]
[null,"Диспресный грунт","Несвязанные","Вулканогенно-осадочные","Вулканогенно-осадочные","Минеральные","Вулканогенно-обломочные"]
[null,"Диспресный грунт","Несвязанные","Вулканогенно-осадочные","Осадочно-вулканогенные","Минеральные","Вулканогенно-обломочные"]
[null,"Диспресный грунт","Несвязанные","Вулканогенно-осадочные","Пирокластические","Минеральные","Вулканогенно-обломочные"]
[null,"Диспресный грунт","Несвязанные","Вулканогенно-осадочные","Вулканогенно-осадочные","Минеральные","Вулканические пески"]
[null,"Диспресный грунт","Несвязанные","Вулканогенно-осадочные","Осадочно-вулканогенные","Минеральные","Вулканические пески"]
[null,"Диспресный грунт","Несвязанные","Вулканогенно-осадочные","Пирокластические","Минеральные","Вулканические пески"]
[null,"Диспресный грунт","Несвязанные","Вулканогенно-осадочные","Вулканогенно-осадочные","Минеральные","Вулканическая пепа"]
[null,"Диспресный грунт","Несвязанные","Вулканогенно-осадочные","Осадочно-вулканогенные","Минеральные","Вулканическая пепа"]
[null,"Диспресный грунт","Несвязанные","Вулканогенно-осадочные","Пирокластические","Минеральные","Вулканическая пепа"]
[null,"Диспресный грунт","Несвязанные","Эловиальные","Образованные в результате выветривания скальных грунтов","Минеральные","Кркпнообломочные грунты коры выветривания"]
[null,"Диспресный грунт","Несвязанные","Эловиальные","Образованные в результате выветривания скальных грунтов","Минеральные","Кркпнообломочные пески коры выветривания"]
[null,"Диспресный грунт","Несвязанные","Эловиальные","Образованные в результате выветривания скальных грунтов","Органо-миниральные","Кркпнообломочные грунты коры выветривания"]
[null,"Диспресный грунт","Несвязанные","Эловиальные","Образованные в результате выветривания скальных грунтов","Органо-миниральные","Кркпнообломочные пески коры выветривания"]
[null,"Диспресный грунт","Связанные","Осадочные","Морские","Минеральные","Глинистые грунты"]
[null,"Диспресный грунт","Связанные","Осадочные","Аллюквиальные","Минеральные","Глинистые грунты"]
[null,"Диспресный грунт","Связанные","Осадочные","Флювиальные","Минеральные","Глинистые грунты"]
[null,"Диспресный грунт","Связанные","Осадочные","Ледниковые","Минеральные","Глинистые грунты"]
[null,"Диспресный грунт","Связанные","Осадочные","Эоловые","Минеральные","Глинистые грунты"]
[null,"Диспресный грунт","Связанные","Осадочные","Склоновые","Минеральные","Глинистые грунты"]
[null,"Диспресный грунт","Связанные","Осадочные","Морские","Органо-миниральные","Глинистые грунты заторфованные"]
[null,"Диспресный грунт","Связанные","Осадочные","Аллюквиальные","Органо-миниральные","Глинистые грунты заторфованные"]
[null,"Диспресный грунт","Связанные","Осадочные","Флювиальные","Органо-миниральные","Глинистые грунты заторфованные"]
[null,"Диспресный грунт","Связанные","Осадочные","Ледниковые","Органо-миниральные","Глинистые грунты заторфованные"]
[null,"Диспресный грунт","Связанные","Осадочные","Эоловые","Органо-миниральные","Глинистые грунты заторфованные"]
[null,"Диспресный грунт","Связанные","Осадочные","Склоновые","Органо-миниральные","Глинистые грунты заторфованные"]
[null,"Диспресный грунт","Связанные","Осадочные","Морские","Органо-миниральные","Илы"]
[null,"Диспресный грунт","Связанные","Осадочные","Аллюквиальные","Органо-миниральные","Илы"]
[null,"Диспресный грунт","Связанные","Осадочные","Флювиальные","Органо-миниральные","Илы"]
[null,"Диспресный грунт","Связанные","Осадочные","Ледниковые","Органо-миниральные","Илы"]
[null,"Диспресный грунт","Связанные","Осадочные","Эоловые","Органо-миниральные","Илы"]
[null,"Диспресный грунт","Связанные","Осадочные","Склоновые","Органо-миниральные","Илы"]
[null,"Диспресный грунт","Связанные","Осадочные","Морские","Органо-миниральные","Сапропели"]
[null,"Диспресный грунт","Связанные","Осадочные","Аллюквиальные","Органо-миниральные","Сапропели"]
[null,"Диспресный грунт","Связанные","Осадочные","Флювиальные","Органо-миниральные","Сапропели"]
[null,"Диспресный грунт","Связанные","Осадочные","Ледниковые","Органо-миниральные","Сапропели"]
[null,"Диспресный грунт","Связанные","Осадочные","Эоловые","Органо-миниральные","Сапропели"]
[null,"Диспресный грунт","Связанные","Осадочные","Склоновые","Органо-миниральные","Сапропели"]
[null,"Диспресный грунт","Связанные","Осадочные","Озерно-болотные","Органические","Торф"]
[null,"Диспресный грунт","Связанные","Осадочные","Болотные","Органические","Торф"]
[null,"Диспресный грунт","Связанные","Осадочные","Аллювиально-болотные","Органические","Торф"]
[null,"Диспресный грунт","Связанные","Осадочные","Озерно-болотные","Органические","Сапропели"]
[null,"Диспресный грунт","Связанные","Осадочные","Болотные","Органические","Сапропели"]
[null,"Диспресный грунт","Связанные","Осадочные","Аллювиально-болотные","Органические","Сапропели"]
[null,"Диспресный грунт","Связанные","Элювиальные","Образованные в результате выветривания скальных грунтов","Минеральные","Глинистые грунты коры выветривания"]
[null,"Диспресный грунт","Связанные","Элювиальные","Образованные в результате выветривания скальных грунтов","Органо-минеральные","Глинистые грунты коры выветривания"]
[null,"Мерзлый грунт","Скальные мерзлые","Типы скальных грунтов","Все подтипы скадьных грунтов","Все виды скальных грунтов","Все виды скальных грунтов"]
[null,"Мерзлый грунт","Диспресные мерзлые","Типы диспресных грунтов","Все подтипы диспресных грунтов","Все виды диспресных грунтов","Все подвиды диспресных грунтов"]
[null,"Мерзлый грунт","Ледянные грунты","Льды конституционные (грунтовые)","Сегреционные","Грунты с льдистостью более 0,8","Льды и ледогрунты разного состава"]
[null,"Мерзлый грунт","Ледянные грунты","Льды конституционные (грунтовые)","Инъекционные","Грунты с льдистостью более 0,9","Льды и ледогрунты разного состава"]
[null,"Мерзлый грунт","Ледянные грунты","Льды конституционные (грунтовые)","Ледниковые","Грунты с льдистостью более 0,10","Льды и ледогрунты разного состава"]
[null,"Мерзлый грунт","Ледянные грунты","Льды конституционные (грунтовые)","Инфильтрационные","Грунты с льдистостью более 0,11","Льды и ледогрунты разного состава"]
[null,"Мерзлый грунт","Ледянные грунты","Льды конституционные (грунтовые)","Жильные","Грунты с льдистостью более 0,12","Льды и ледогрунты разного состава"]
[null,"Мерзлый грунт","Ледянные грунты","Льды конституционные (грунтовые)","Повторно-жильные","Грунты с льдистостью более 0,13","Льды и ледогрунты разного состава"]

{"sheet":"Directory","index":2,"n_rows":71,"n_cols":13,"rows_kept":71,"cut":false,"hidden":false,"merged":[]}
["ID","Класс","Подкласс","Тип","Подтип","Вид","Подвид"]
[null,{"$f":"IFERROR(INDEX(ColumnB,MATCH(0,COUNTIF($B$1:B1,ColumnB),0)),\" \")","v":"Скальный грунт"},{"$f":"IFERROR(INDEX(ColumnC,MATCH(0,COUNTIF(C$1:C1,IF(ColumnB='Акт отбора пробы'!$I$19,ColumnC,C$1)),0)),\" \")","v":"Кристализационные"},null,null,null,{"$f":"IFERROR(INDEX(ColumnG,MATCH(0,COUNTIF(G$1:G1,IF((ColumnB='Акт отбора пробы'!$I$19)*(ColumnC='Акт отбора пробы'!$I$21),ColumnG,G$1)),0)),\" \")","v":"Кластолавы"}]
[null,{"$f":"IFERROR(INDEX(ColumnB,MATCH(0,COUNTIF($B$1:B2,ColumnB),0)),\" \")","v":"Диспресный грунт"},{"$f":"IFERROR(INDEX(ColumnC,MATCH(0,COUNTIF(C$1:C2,IF(ColumnB='Акт отбора пробы'!$I$19,ColumnC,C$1)),0)),\" \")","v":"Цементационные"},null,null,null,{"$f":"IFERROR(INDEX(ColumnG,MATCH(0,COUNTIF(G$1:G2,IF((ColumnB='Акт отбора пробы'!$I$19)*(ColumnC='Акт отбора пробы'!$I$21),ColumnG,G$1)),0)),\" \")","v":"Кластиты"}]
[null,{"$f":"IFERROR(INDEX(ColumnB,MATCH(0,COUNTIF($B$1:B3,ColumnB),0)),\" \")","v":"Мерзлый грунт"},{"$f":"IFERROR(INDEX(ColumnC,MATCH(0,COUNTIF(C$1:C3,IF(ColumnB='Акт отбора пробы'!$I$19,ColumnC,C$1)),0)),\" \")","v":" "},null,null,null,{"$f":"IFERROR(INDEX(ColumnG,MATCH(0,COUNTIF(G$1:G3,IF((ColumnB='Акт отбора пробы'!$I$19)*(ColumnC='Акт отбора пробы'!$I$21),ColumnG,G$1)),0)),\" \")","v":"Тефра"}]
[null,{"$f":"IFERROR(INDEX(ColumnB,MATCH(0,COUNTIF($B$1:B4,ColumnB),0)),\" \")","v":" "},{"$f":"IFERROR(INDEX(ColumnC,MATCH(0,COUNTIF(C$1:C4,IF(ColumnB='Акт отбора пробы'!$I$19,ColumnC,C$1)),0)),\" \")","v":" "},null,null,null,{"$f":"IFERROR(INDEX(ColumnG,MATCH(0,COUNTIF(G$1:G4,IF((ColumnB='Акт отбора пробы'!$I$19)*(ColumnC='Акт отбора пробы'!$I$21),ColumnG,G$1)),0)),\" \")","v":"Туфы"}]
[null,{"$f":"IFERROR(INDEX(ColumnB,MATCH(0,COUNTIF($B$1:B5,ColumnB),0)),\" \")","v":" "},{"$f":"IFERROR(INDEX(ColumnC,MATCH(0,COUNTIF(C$1:C5,IF(ColumnB='Акт отбора пробы'!$I$19,ColumnC,C$1)),0)),\" \")","v":" "},null,null,null,{"$f":"IFERROR(INDEX(ColumnG,MATCH(0,COUNTIF(G$1:G5,IF((ColumnB='Акт отбора пробы'!$I$19)*(ColumnC='Акт отбора пробы'!$I$21),ColumnG,G$1)),0)),\" \")","v":"Туффиты"}]
[null,null,{"$f":"IFERROR(INDEX(ColumnC,MATCH(0,COUNTIF(C$1:C6,IF(ColumnB='Акт отбора пробы'!$I$19,ColumnC,C$1)),0)),\" \")","v":" "},null,null,null,{"$f":"IFERROR(INDEX(ColumnG,MATCH(0,COUNTIF(G$1:G6,IF((ColumnB='Акт отбора пробы'!$I$19)*(ColumnC='Акт отбора пробы'!$I$21),ColumnG,G$1)),0)),\" \")","v":"Конгломераты"},null,"Подкласс","Тип","Подтип","Вид","Подвид"]
[null,null,{"$f":"IFERROR(INDEX(ColumnC,MATCH(0,COUNTIF(C$1:C7,IF(ColumnB='Акт отбора пробы'!$I$19,ColumnC,C$1)),0)),\" \")","v":" "},null,null,null,{"$f":"IFERROR(INDEX(ColumnG,MATCH(0,COUNTIF(G$1:G7,IF((ColumnB='Акт отбора пробы'!$I$19)*(ColumnC='Акт отбора пробы'!$I$21),ColumnG,G$1)),0)),\" \")","v":"Брекчии"},null,"B-C","C-D","D-E","E-F","F-G"]
[null,null,{"$f":"IFERROR(INDEX(ColumnC,MATCH(0,COUNTIF(C$1:C8,IF(ColumnB='Акт отбора пробы'!$I$19,ColumnC,C$1)),0)),\" \")","v":" "},null,null,null,{"$f":"IFERROR(INDEX(ColumnG,MATCH(0,COUNTIF(G$1:G8,IF((ColumnB='Акт отбора пробы'!$I$19)*(ColumnC='Акт отбора пробы'!$I$21),ColumnG,G$1)),0)),\" \")","v":"Гравелиты"},null,{"$f":"OFFSET(Ground[[#All],[Класс]],MATCH('Акт отбора пробы'!$I$19,Ground[[#All],[Класс]],0)-1,1,COUNTIF(Ground[[#All],[Класс]],'Акт отбора пробы'!$I$19),1)","v":"Кристализационные"},{"$f":"OFFSET(Ground[[#All],[Подкласс]],MATCH('Акт отбора пробы'!$I$21,Ground[[#All],[Подкласс]],0)-1,1,COUNTIF(Ground[[#All],[Подкласс]],'Акт отбора пробы'!$I$21),1)","v":"Вулканогенно-осадочные"},{"$f":"OFFSET(Ground[[#All],[Тип]],MATCH('Акт отбора пробы'!$I$21,Ground[[#All],[Тип]],0)-1,1,COUNTIF(Ground[[#All],[Тип]],'Акт отбора пробы'!$I$21),1)","v":{"$error":"#N/A"}},{"$f":"OFFSET(Ground[[#All],[Вид]],MATCH('Акт отбора пробы'!$I$21,Ground[[#All],[Вид]],0)-1,1,COUNTIF(Ground[[#All],[Вид]],'Акт отбора пробы'!$I$21),1)","v":{"$error":"#N/A"}},{"$f":"OFFSET(Ground[[#All],[Подвид]],MATCH('Акт отбора пробы'!$I$21,Ground[[#All],[Подвид]],0)-1,1,COUNTIF(Ground[[#All],[Подвид]],'Акт отбора пробы'!$I$21),1)","v":{"$error":"#N/A"}}]
[null,null,{"$f":"IFERROR(INDEX(ColumnC,MATCH(0,COUNTIF(C$1:C9,IF(ColumnB='Акт отбора пробы'!$I$19,ColumnC,C$1)),0)),\" \")","v":" "},null,null,null,{"$f":"IFERROR(INDEX(ColumnG,MATCH(0,COUNTIF(G$1:G9,IF((ColumnB='Акт отбора пробы'!$I$19)*(ColumnC='Акт отбора пробы'!$I$21),ColumnG,G$1)),0)),\" \")","v":"Песчаники"},null,"Кристализационные","Вулканогенно-осадочные"]
[null,null,{"$f":"IFERROR(INDEX(ColumnC,MATCH(0,COUNTIF(C$1:C10,IF(ColumnB='Акт отбора пробы'!$I$19,ColumnC,C$1)),0)),\" \")","v":" "},null,null,null,{"$f":"IFERROR(INDEX(ColumnG,MATCH(0,COUNTIF(G$1:G10,IF((ColumnB='Акт отбора пробы'!$I$19)*(ColumnC='Акт отбора пробы'!$I$21),ColumnG,G$1)),0)),\" \")","v":"Алевролиты"},null,"Кристализационные","Вулканогенно-осадочные"]
[null,null,{"$f":"IFERROR(INDEX(ColumnC,MATCH(0,COUNTIF(C$1:C11,IF(ColumnB='Акт отбора пробы'!$I$19,ColumnC,C$1)),0)),\" \")","v":" "},null,null,null,{"$f":"IFERROR(INDEX(ColumnG,MATCH(0,COUNTIF(G$1:G11,IF((ColumnB='Акт отбора пробы'!$I$19)*(ColumnC='Акт отбора пробы'!$I$21),ColumnG,G$1)),0)),\" \")","v":"Аргиллиты"},null,"Кристализационные","Вулканогенно-осадочные"]
[null,null,{"$f":"IFERROR(INDEX(ColumnC,MATCH(0,COUNTIF(C$1:C12,IF(ColumnB='Акт отбора пробы'!$I$19,ColumnC,C$1)),0)),\" \")","v":" "},null,null,null,{"$f":"IFERROR(INDEX(ColumnG,MATCH(0,COUNTIF(G$1:G12,IF((ColumnB='Акт отбора пробы'!$I$19)*(ColumnC='Акт отбора пробы'!$I$21),ColumnG,G$1)),0)),\" \")","v":"Опоки"},null,"Кристализационные","Вулканогенно-осадочные"]
[null,null,{"$f":"IFERROR(INDEX(ColumnC,MATCH(0,COUNTIF(C$1:C13,IF(ColumnB='Акт отбора пробы'!$I$19,ColumnC,C$1)),0)),\" \")","v":" "},null,null,null,{"$f":"IFERROR(INDEX(ColumnG,MATCH(0,COUNTIF(G$1:G13,IF((ColumnB='Акт отбора пробы'!$I$19)*(ColumnC='Акт отбора пробы'!$I$21),ColumnG,G$1)),0)),\" \")","v":"Трепела"},null,"Кристализационные","Осадочные"]
[null,null,{"$f":"IFERROR(INDEX(ColumnC,MATCH(0,COUNTIF(C$1:C14,IF(ColumnB='Акт отбора пробы'!$I$19,ColumnC,C$1)),0)),\" \")","v":" "},null,null,null,{"$f":"IFERROR(INDEX(ColumnG,MATCH(0,COUNTIF(G$1:G14,IF((ColumnB='Акт отбора пробы'!$I$19)*(ColumnC='Акт отбора пробы'!$I$21),ColumnG,G$1)),0)),\" \")","v":"Известняк"},null,"Кристализационные","Осадочные"]
[null,null,{"$f":"IFERROR(INDEX(ColumnC,MATCH(0,COUNTIF(C$1:C15,IF(ColumnB='Акт отбора пробы'!$I$19,ColumnC,C$1)),0)),\" \")","v":" "},null,null,null,{"$f":"IFERROR(INDEX(ColumnG,MATCH(0,COUNTIF(G$1:G15,IF((ColumnB='Акт отбора пробы'!$I$19)*(ColumnC='Акт отбора пробы'!$I$21),ColumnG,G$1)),0)),\" \")","v":"Мергели"},null,"Кристализационные","Осадочные"]
[null,null,{"$f":"IFERROR(INDEX(ColumnC,MATCH(0,COUNTIF(C$1:C16,IF(ColumnB='Акт отбора пробы'!$I$19,ColumnC,C$1)),0)),\" \")","v":" "},null,null,null,{"$f":"IFERROR(INDEX(ColumnG,MATCH(0,COUNTIF(G$1:G16,IF((ColumnB='Акт отбора пробы'!$I$19)*(ColumnC='Акт отбора пробы'!$I$21),ColumnG,G$1)),0)),\" \")","v":"Доломиты"},null,"Кристализационные","Осадочные"]
[null,null,{"$f":"IFERROR(INDEX(ColumnC,MATCH(0,COUNTIF(C$1:C17,IF(ColumnB='Акт отбора пробы'!$I$19,ColumnC,C$1)),0)),\" \")","v":" "},null,null,null,{"$f":"IFERROR(INDEX(ColumnG,MATCH(0,COUNTIF(G$1:G17,IF((ColumnB='Акт отбора пробы'!$I$19)*(ColumnC='Акт отбора пробы'!$I$21),ColumnG,G$1)),0)),\" \")","v":"Гипс"},null,"Кристализационные","Осадочные"]
[null,null,{"$f":"IFERROR(INDEX(ColumnC,MATCH(0,COUNTIF(C$1:C18,IF(ColumnB='Акт отбора пробы'!$I$19,ColumnC,C$1)),0)),\" \")","v":" "},null,null,null,{"$f":"IFERROR(INDEX(ColumnG,MATCH(0,COUNTIF(G$1:G18,IF((ColumnB='Акт отбора пробы'!$I$19)*(ColumnC='Акт отбора пробы'!$I$21),ColumnG,G$1)),0)),\" \")","v":"Ангидрит"},null,"Кристализационные","Осадочные"]
[null,null,{"$f":"IFERROR(INDEX(ColumnC,MATCH(0,COUNTIF(C$1:C19,IF(ColumnB='Акт отбора пробы'!$I$19,ColumnC,C$1)),0)),\" \")","v":" "},null,null,null,{"$f":"IFERROR(INDEX(ColumnG,MATCH(0,COUNTIF(G$1:G19,IF((ColumnB='Акт отбора пробы'!$I$19)*(ColumnC='Акт отбора пробы'!$I$21),ColumnG,G$1)),0)),\" \")","v":"Галит"},null,"Кристализационные","Осадочные"]
[null,null,{"$f":"IFERROR(INDEX(ColumnC,MATCH(0,COUNTIF(C$1:C20,IF(ColumnB='Акт отбора пробы'!$I$19,ColumnC,C$1)),0)),\" \")","v":" "},null,null,null,{"$f":"IFERROR(INDEX(ColumnG,MATCH(0,COUNTIF(G$1:G20,IF((ColumnB='Акт отбора пробы'!$I$19)*(ColumnC='Акт отбора пробы'!$I$21),ColumnG,G$1)),0)),\" \")","v":"Сильвинит"},null,"Кристализационные","Осадочные"]
[null,null,{"$f":"IFERROR(INDEX(ColumnC,MATCH(0,COUNTIF(C$1:C21,IF(ColumnB='Акт отбора пробы'!$I$19,ColumnC,C$1)),0)),\" \")","v":" "},null,null,null,{"$f":"IFERROR(INDEX(ColumnG,MATCH(0,COUNTIF(G$1:G21,IF((ColumnB='Акт отбора пробы'!$I$19)*(ColumnC='Акт отбора пробы'!$I$21),ColumnG,G$1)),0)),\" \")","v":" "},null,"Кристализационные","Осадочные"]
[null,null,{"$f":"IFERROR(INDEX(ColumnC,MATCH(0,COUNTIF(C$1:C22,IF(ColumnB='Акт отбора пробы'!$I$19,ColumnC,C$1)),0)),\" \")","v":" "},null,null,null,{"$f":"IFERROR(INDEX(ColumnG,MATCH(0,COUNTIF(G$1:G22,IF((ColumnB='Акт отбора пробы'!$I$19)*(ColumnC='Акт отбора пробы'!$I$21),ColumnG,G$1)),0)),\" \")","v":" "},null,"Кристализационные","Осадочные"]
[null,null,{"$f":"IFERROR(INDEX(ColumnC,MATCH(0,COUNTIF(C$1:C23,IF(ColumnB='Акт отбора пробы'!$I$19,ColumnC,C$1)),0)),\" \")","v":" "},null,null,null,{"$f":"IFERROR(INDEX(ColumnG,MATCH(0,COUNTIF(G$1:G23,IF((ColumnB='Акт отбора пробы'!$I$19)*(ColumnC='Акт отбора пробы'!$I$21),ColumnG,G$1)),0)),\" \")","v":" "},null,"Кристализационные","Осадочные"]
[null,null,{"$f":"IFERROR(INDEX(ColumnC,MATCH(0,COUNTIF(C$1:C24,IF(ColumnB='Акт отбора пробы'!$I$19,ColumnC,C$1)),0)),\" \")","v":" "},null,null,null,{"$f":"IFERROR(INDEX(ColumnG,MATCH(0,COUNTIF(G$1:G24,IF((ColumnB='Акт отбора пробы'!$I$19)*(ColumnC='Акт отбора пробы'!$I$21),ColumnG,G$1)),0)),\" \")","v":" "},null,"Кристализационные","Осадочные"]
[null,null,{"$f":"IFERROR(INDEX(ColumnC,MATCH(0,COUNTIF(C$1:C25,IF(ColumnB='Акт отбора пробы'!$I$19,ColumnC,C$1)),0)),\" \")","v":" "},null,null,null,{"$f":"IFERROR(INDEX(ColumnG,MATCH(0,COUNTIF(G$1:G25,IF((ColumnB='Акт отбора пробы'!$I$19)*(ColumnC='Акт отбора пробы'!$I$21),ColumnG,G$1)),0)),\" \")","v":" "},null,"Кристализационные","Осадочные"]
[null,null,{"$f":"IFERROR(INDEX(ColumnC,MATCH(0,COUNTIF(C$1:C26,IF(ColumnB='Акт отбора пробы'!$I$19,ColumnC,C$1)),0)),\" \")","v":" "},null,null,null,{"$f":"IFERROR(INDEX(ColumnG,MATCH(0,COUNTIF(G$1:G26,IF((ColumnB='Акт отбора пробы'!$I$19)*(ColumnC='Акт отбора пробы'!$I$21),ColumnG,G$1)),0)),\" \")","v":" "},null,"Кристализационные","Осадочные"]
[null,null,{"$f":"IFERROR(INDEX(ColumnC,MATCH(0,COUNTIF(C$1:C27,IF(ColumnB='Акт отбора пробы'!$I$19,ColumnC,C$1)),0)),\" \")","v":" "},null,null,null,{"$f":"IFERROR(INDEX(ColumnG,MATCH(0,COUNTIF(G$1:G27,IF((ColumnB='Акт отбора пробы'!$I$19)*(ColumnC='Акт отбора пробы'!$I$21),ColumnG,G$1)),0)),\" \")","v":" "},null,"Кристализационные","Осадочные"]
[null,null,{"$f":"IFERROR(INDEX(ColumnC,MATCH(0,COUNTIF(C$1:C28,IF(ColumnB='Акт отбора пробы'!$I$19,ColumnC,C$1)),0)),\" \")","v":" "},null,null,null,{"$f":"IFERROR(INDEX(ColumnG,MATCH(0,COUNTIF(G$1:G28,IF((ColumnB='Акт отбора пробы'!$I$19)*(ColumnC='Акт отбора пробы'!$I$21),ColumnG,G$1)),0)),\" \")","v":" "},null,"Кристализационные",{"$error":"#N/A"}]
[null,null,{"$f":"IFERROR(INDEX(ColumnC,MATCH(0,COUNTIF(C$1:C29,IF(ColumnB='Акт отбора пробы'!$I$19,ColumnC,C$1)),0)),\" \")","v":" "},null,null,null,{"$f":"IFERROR(INDEX(ColumnG,MATCH(0,COUNTIF(G$1:G29,IF((ColumnB='Акт отбора пробы'!$I$19)*(ColumnC='Акт отбора пробы'!$I$21),ColumnG,G$1)),0)),\" \")","v":" "},null,"Кристализационные",{"$error":"#N/A"}]
[null,null,{"$f":"IFERROR(INDEX(ColumnC,MATCH(0,COUNTIF(C$1:C30,IF(ColumnB='Акт отбора пробы'!$I$19,ColumnC,C$1)),0)),\" \")","v":" "},null,null,null,{"$f":"IFERROR(INDEX(ColumnG,MATCH(0,COUNTIF(G$1:G30,IF((ColumnB='Акт отбора пробы'!$I$19)*(ColumnC='Акт отбора пробы'!$I$21),ColumnG,G$1)),0)),\" \")","v":" "},null,"Кристализационные",{"$error":"#N/A"}]
[null,null,{"$f":"IFERROR(INDEX(ColumnC,MATCH(0,COUNTIF(C$1:C31,IF(ColumnB='Акт отбора пробы'!$I$19,ColumnC,C$1)),0)),\" \")","v":" "},null,null,null,{"$f":"IFERROR(INDEX(ColumnG,MATCH(0,COUNTIF(G$1:G31,IF((ColumnB='Акт отбора пробы'!$I$19)*(ColumnC='Акт отбора пробы'!$I$21),ColumnG,G$1)),0)),\" \")","v":" "},null,"Кристализационные",{"$error":"#N/A"}]
[null,null,{"$f":"IFERROR(INDEX(ColumnC,MATCH(0,COUNTIF(C$1:C32,IF(ColumnB='Акт отбора пробы'!$I$19,ColumnC,C$1)),0)),\" \")","v":" "},null,null,null,{"$f":"IFERROR(INDEX(ColumnG,MATCH(0,COUNTIF(G$1:G32,IF((ColumnB='Акт отбора пробы'!$I$19)*(ColumnC='Акт отбора пробы'!$I$21),ColumnG,G$1)),0)),\" \")","v":" "},null,"Кристализационные",{"$error":"#N/A"}]
[null,null,{"$f":"IFERROR(INDEX(ColumnC,MATCH(0,COUNTIF(C$1:C33,IF(ColumnB='Акт отбора пробы'!$I$19,ColumnC,C$1)),0)),\" \")","v":" "},null,null,null,{"$f":"IFERROR(INDEX(ColumnG,MATCH(0,COUNTIF(G$1:G33,IF((ColumnB='Акт отбора пробы'!$I$19)*(ColumnC='Акт отбора пробы'!$I$21),ColumnG,G$1)),0)),\" \")","v":" "},null,"Кристализационные",{"$error":"#N/A"}]
[null,null,{"$f":"IFERROR(INDEX(ColumnC,MATCH(0,COUNTIF(C$1:C34,IF(ColumnB='Акт отбора пробы'!$I$19,ColumnC,C$1)),0)),\" \")","v":" "},null,null,null,{"$f":"IFERROR(INDEX(ColumnG,MATCH(0,COUNTIF(G$1:G34,IF((ColumnB='Акт отбора пробы'!$I$19)*(ColumnC='Акт отбора пробы'!$I$21),ColumnG,G$1)),0)),\" \")","v":" "},null,"Кристализационные",{"$error":"#N/A"}]
[null,null,null,null,null,null,null,null,"Кристализационные",{"$error":"#N/A"}]
[null,null,null,null,null,null,null,null,"Кристализационные",{"$error":"#N/A"}]
[null,null,null,null,null,null,null,null,"Кристализационные",{"$error":"#N/A"}]
[null,null,null,null,null,null,null,null,"Кристализационные",{"$error":"#N/A"}]
[null,null,null,null,null,null,null,null,"Кристализационные",{"$error":"#N/A"}]
[null,null,null,null,null,null,null,null,"Кристализационные"]
[null,null,null,null,null,null,null,null,"Кристализационные"]
[null,null,null,null,null,null,null,null,"Цементационные"]
[null,null,null,null,null,null,null,null,"Цементационные"]
[null,null,null,null,null,null,null,null,"Цементационные"]
[null,null,null,null,null,null,null,null,"Цементационные"]
[null,null,null,null,null,null,null,null,"Цементационные"]
[null,null,null,null,null,null,null,null,"Цементационные"]
[null,null,null,null,null,null,null,null,"Цементационные"]
[null,null,null,null,null,null,null,null,"Цементационные"]
[null,null,null,null,null,null,null,null,"Цементационные"]
[null,null,null,null,null,null,null,null,"Цементационные"]
[null,null,null,null,null,null,null,null,"Цементационные"]
[null,null,null,null,null,null,null,null,"Цементационные"]
[null,null,null,null,null,null,null,null,"Цементационные"]
[null,null,null,null,null,null,null,null,"Цементационные"]
[null,null,null,null,null,null,null,null,"Цементационные"]
[null,null,null,null,null,null,null,null,"Цементационные"]
[null,null,null,null,null,null,null,null,"Цементационные"]
[null,null,null,null,null,null,null,null,"Цементационные"]
[null,null,null,null,null,null,null,null,"Цементационные"]
[null,null,null,null,null,null,null,null,"Цементационные"]
[null,null,null,null,null,null,null,null,{"$error":"#N/A"}]
[null,null,null,null,null,null,null,null,{"$error":"#N/A"}]
[null,null,null,null,null,null,null,null,{"$error":"#N/A"}]
[null,null,null,null,null,null,null,null,{"$error":"#N/A"}]
[null,null,null,null,null,null,null,null,{"$error":"#N/A"}]
[null,null,null,null,null,null,null,null,{"$error":"#N/A"}]
[null,null,null,null,null,null,null,null,{"$error":"#N/A"}]
[null,null,null,null,null,null,null,null,{"$error":"#N/A"}]
[null,null,null,null,null,null,null,null,{"$error":"#N/A"}]